bitfinex/quotes_SOLUSD_20240615
["timestamp","ask_amount","ask_price","bid_price","bid_amount"]
[1718491999928,0.78090844,145.33,145.28,21.8338]
[1718492002640,5.87290844,145.33,145.28,16.2238]
[1718492002938,5.61,145.33,145.28,16.2238]
[1718492003102,5.61,145.33,145.28,21.8338]
[1718492004433,5.61,145.33,145.28,16.2238]
[1718492008734,5.61,145.33,145.28,21.8338]
[1718492009305,0.78090844,145.34,145.28,21.8338]
[1718492009506,5.61,145.34,145.28,16.2238]
[1718492010241,0.78090844,145.35,145.28,16.2238]
[1718492010534,5.61,145.34,145.28,16.2238]
[1718492012107,0.78090844,145.33,145.28,16.2238]
[1718492013634,0.78090844,145.34,145.28,16.2238]
[1718492013824,6.39090844,145.34,145.28,15.7238]
[1718492014023,0.78090844,145.34,145.28,15.7238]
[1718492015828,6.39090844,145.35,145.28,15.7238]
[1718492017932,6.39090844,145.35,145.28,15.2238]
[1718492019517,8.93640844,145.35,145.28,15.2238]
[1718492019726,3.32640844,145.35,145.28,15.2238]
[1718492019936,5.61,145.34,145.28,15.2238]
[1718492020540,0.78090844,145.33,145.28,15.2238]
[1718492022327,0.78090844,145.35,145.28,15.2238]
[1718492023042,6.39090844,145.35,145.28,15.2238]
[1718492024141,0.78090844,145.35,145.28,15.2238]
[1718492024343,6.39090844,145.35,145.28,15.2238]
[1718492025648,5.61,145.34,145.28,15.2238]
[1718492027046,0.78090844,145.35,145.28,15.2238]
[1718492027219,5.61,145.34,145.28,20.8338]
[1718492028828,0.78090844,145.33,145.28,20.8338]
[1718492029356,0.78090844,145.33,145.28,15.2238]
[1718492031421,0.78090844,145.33,145.28,20.8338]
[1718492031742,5.61,145.35,145.28,20.8338]
[1718492031919,0.78090844,145.34,145.28,20.8338]
[1718492032124,5.61,145.35,145.28,20.8338]
[1718492032350,0.78090844,145.34,145.28,20.8338]
[1718492033043,1.63100024,145.37,145.28,20.8338]
[1718492033245,5.61,145.35,145.28,20.8338]
[1718492034547,0.78090844,145.34,145.28,20.8338]
[1718492038936,5.61,145.35,145.28,20.8338]
[1718492039272,0.78090844,145.34,145.28,20.8338]
[1718492040443,1.63100024,145.37,145.28,20.8338]
[1718492040636,5.61,145.36,145.29,5.61]
[1718492040952,0.78090844,145.35,145.29,5.61]
[1718492049548,6.39090844,145.35,145.28,15.2238]
[1718492049748,0.78090844,145.34,145.28,20.8338]
[1718492050059,0.78090844,145.34,145.28,15.2238]
[1718492050267,0.78090844,145.34,145.28,20.8338]
[1718492050472,6.39090844,145.34,145.28,20.8338]
[1718492050646,0.78090844,145.33,145.28,20.8338]
[1718492053550,5.61,145.34,145.28,20.8338]
[1718492053751,0.78090844,145.33,145.28,20.8338]
[1718492054958,5.61,145.34,145.28,20.8338]
[1718492055171,0.78090844,145.33,145.29,5.61]
[1718492056881,5.61,145.34,145.29,5.61]
[1718492057174,0.78090844,145.33,145.29,5.61]
[1718492058254,0.78090844,145.34,145.29,5.61]
[1718492059775,6.39090844,145.34,145.29,5.61]
[1718492059977,0.78090844,145.33,145.29,5.61]
[1718492060558,0.78090844,145.33,145.28,20.8338]
[1718492062284,0.78090844,145.34,145.28,20.8338]
[1718492064986,0.78090844,145.34,145.28,15.2238]
[1718492065186,0.78090844,145.34,145.28,20.8338]
[1718492069058,0.78090844,145.34,145.28,15.2238]
[1718492069280,0.78090844,145.34,145.28,20.8338]
[1718492072384,6.39090844,145.34,145.28,20.8338]
[1718492072775,6.39090844,145.34,145.28,15.2238]
[1718492075692,5.61,145.33,145.28,15.2238]
[1718492075878,0.78090844,145.32,145.28,15.2238]
[1718492084192,6.39090844,145.32,145.28,15.2238]
[1718492089116,5.61,145.3,145.27,6.0157]
[1718492091915,5.61,145.31,145.27,6.0157]
[1718492092114,0.78090844,145.3,145.27,6.0157]
[1718492094304,6.39090844,145.3,145.27,6.0157]
[1718492094608,5.61,145.3,145.25,21.797]
[1718492096314,5.61,145.3,145.25,16.187]
[1718492096512,6.39090844,145.29,145.25,16.187]
[1718492096814,5.61,145.29,145.25,16.187]
[1718492100195,6.39090844,145.28,145.25,16.187]
[1718492100396,5.61,145.28,145.25,16.187]
[1718492103146,5.61,145.29,145.25,16.187]
[1718492103297,0.78090844,145.31,145.25,16.187]
[1718492103630,0.78090844,145.34,145.27,5.61]
[1718492103953,5.61,145.33,145.27,5.61]
[1718492104219,0.78090844,145.32,145.27,5.61]
[1718492104597,0.78090844,145.32,145.28,30.0]
[1718492104920,0.78090844,145.32,145.29,5.61]
[1718492105103,5.61,145.35,145.29,5.61]
[1718492105300,0.78090844,145.34,145.29,5.61]
[1718492105522,0.78090844,145.34,145.3,22.0203]
[1718492105732,0.78090844,145.35,145.3,22.0203]
[1718492106211,0.78090844,145.35,145.3,16.4103]
[1718492106409,0.78090844,145.35,145.3,22.0203]
[1718492106622,0.78090844,145.35,145.3,52.0203]
[1718492106928,5.61,145.35,145.3,52.0203]
[1718492110551,5.61,145.35,145.3,22.0203]
[1718492110721,1.63100024,145.37,145.3,22.0203]
[1718492110920,1.63100024,145.37,145.31,5.61]
[1718492111140,5.61,145.36,145.31,5.61]
[1718492111626,7.24100024,145.37,145.31,5.61]
[1718492112229,7.24100024,145.37,145.31,35.61]
[1718492112739,7.24100024,145.37,145.32,5.61]
[1718492115052,1.63100024,145.37,145.32,5.61]
[1718492115351,0.8500918,145.37,145.32,5.61]
[1718492118034,6.4600918,145.37,145.32,5.61]
[1718492118757,0.78090844,145.36,145.32,5.61]
[1718492118993,5.61,145.35,145.3,22.0203]
[1718492119641,6.39090844,145.36,145.3,22.0203]
[1718492119836,1.63100024,145.37,145.31,5.61]
[1718492120148,7.24100024,145.37,145.31,5.61]
[1718492123867,7.24100024,145.37,145.32,5.61]
[1718492124382,0.8500918,145.37,145.32,5.61]
[1718492125547,0.8500918,145.37,145.33,5.61]
[1718492126852,0.8500918,145.37,145.31,0.17]
[1718492126853,1.63100024,145.37,145.31,0.17]
[1718492127041,1.63100024,145.37,145.3,16.4103]
[1718492127245,16.90240024,145.37,145.3,16.4103]
[1718492127461,1.63100024,145.37,145.3,22.0203]
[1718492127651,1.63100024,145.37,145.3,16.4103]
[1718492127853,1.63100024,145.37,145.3,22.0203]
[1718492129657,5.61,145.36,145.3,22.0203]
[1718492130051,5.61,145.36,145.31,5.61]
[1718492132857,5.61,145.36,145.3,22.0203]
[1718492133256,5.61,145.36,145.3,16.4103]
[1718492133461,5.61,145.36,145.3,22.0203]
[1718492134793,5.61,145.36,145.31,5.61]
[1718492135588,0.8500918,145.37,145.32,5.61]
[1718492135750,6.4600918,145.37,145.32,5.61]
[1718492138177,6.39090844,145.36,145.3,16.7503]
[1718492138393,5.61,145.36,145.31,5.61]
[1718492138988,7.24100024,145.37,145.31,5.61]
[1718492141760,7.24100024,145.37,145.32,0.38601974]
[1718492143378,7.24100024,145.37,145.31,5.61]
[1718492144067,5.61,145.36,145.31,5.61]
[1718492150789,7.24100024,145.37,145.31,5.61]
[1718492154595,1.63100024,145.37,145.31,5.61]
[1718492179042,1.63100024,145.37,145.32,5.61]
[1718492181591,0.8500918,145.37,145.33,5.61]
[1718492185496,0.8500918,145.37,145.31,0.34]
[1718492185497,1.63100024,145.37,145.32,5.61]
[1718492191014,7.24100024,145.37,145.32,5.61]
[1718492193827,1.63100024,145.37,145.32,5.61]
[1718492205618,7.24100024,145.37,145.32,5.61]
[1718492206630,7.24100024,145.37,145.31,0.34]
[1718492206631,4.17630024,145.37,145.27,8.25316826]
[1718492206825,5.61,145.35,145.29,5.61]
[1718492207714,5.61,145.35,145.26,15.9459]
[1718492207715,5.61,145.35,145.3,5.61]
[1718492208742,5.61,145.36,145.3,5.61]
[1718492209073,0.78090844,145.35,145.3,5.61]
[1718492210320,7.24100024,145.37,145.31,5.61]
[1718492217062,14.87680024,145.37,145.31,5.61]
[1718492217245,16.6608,145.36,145.31,5.61]
[1718492217445,0.78090844,145.35,145.31,5.61]
[1718492218165,0.78090844,145.35,145.3,5.61]
[1718492219284,23.05170844,145.36,145.31,5.61]
[1718492219937,17.44170844,145.36,145.31,5.61]
[1718492220376,0.78090844,145.35,145.31,5.61]
[1718492220963,17.44170844,145.36,145.31,5.61]
[1718492221568,16.6608,145.36,145.32,5.61]
[1718492221891,0.8500918,145.37,145.33,5.61]
[1718492223189,0.8500918,145.37,145.31,0.34]
[1718492223486,0.8500918,145.37,145.33,5.61]
[1718492228976,0.8500918,145.37,145.36,5.61]
[1718492234075,0.8500918,145.37,145.36,6.29]
[1718492234406,16.49400844,145.43,145.36,6.29]
[1718492234570,16.49400844,145.43,145.38,5.61]
[1718492238008,0.78090844,145.42,145.38,5.61]
[1718492240583,16.49400844,145.43,145.38,5.61]
[1718492240886,15.7131,145.43,145.38,5.61]
[1718492241105,16.49400844,145.43,145.38,5.61]
[1718492242189,0.78090844,145.42,145.38,5.61]
[1718492245310,0.78090844,145.42,145.32,5.46056809]
[1718492245311,10.6995,145.4,145.32,5.46056809]
[1718492245609,5.61,145.37,145.31,5.61]
[1718492245813,6.39090844,145.37,145.31,5.61]
[1718492245986,0.78090844,145.37,145.32,5.61]
[1718492247209,6.39090844,145.37,145.32,5.61]
[1718492250512,0.78090844,145.37,145.32,5.61]
[1718492250684,6.39090844,145.37,145.32,5.61]
[1718492251805,0.78090844,145.37,145.32,5.61]
[1718492254694,0.78090844,145.37,145.33,5.61]
[1718492256313,0.78090844,145.37,145.35,30.0]
[1718492256508,22.10400844,145.38,145.35,30.0]
[1718492257721,15.7131,145.38,145.35,30.0]
[1718492257910,15.7131,145.38,145.35,35.61]
[1718492258117,15.7131,145.38,145.35,36.49540204]
[1718492260423,15.7131,145.38,145.35,35.61]
[1718492260607,6.39090844,145.4,145.35,35.61]
[1718492261599,6.39090844,145.4,145.35,30.0]
[1718492267827,5.61,145.39,145.35,30.0]
[1718492274228,5.61,145.39,145.33,5.61]
[1718492274436,5.61,145.39,145.34,30.0]
[1718492275337,6.39090844,145.38,145.34,30.0]
[1718492275545,5.61,145.37,145.34,30.0]
[1718492276215,5.61,145.37,145.31,5.61]
[1718492278553,5.61,145.37,145.32,5.61]
[1718492285661,5.61,145.38,145.32,5.61]
[1718492286765,0.78090844,145.41,145.34,5.61]
[1718492287069,5.61,145.39,145.34,5.61]
[1718492289387,5.61,145.4,145.34,5.61]
[1718492289549,0.78090844,145.39,145.34,5.61]
[1718492292291,0.78090844,145.4,145.35,5.61]
[1718492293578,0.78090844,145.4,145.33,0.17]
[1718492293879,0.78090844,145.4,145.35,5.61]
[1718492295259,5.0877,145.45,145.38,5.61]
[1718492295514,3.32490844,145.44,145.38,5.61]
[1718492295682,5.61,145.43,145.38,5.61]
[1718492295965,0.78090844,145.42,145.38,5.61]
[1718492297651,6.39090844,145.42,145.37,5.61]
[1718492297856,5.61,145.42,145.37,5.61]
[1718492299395,0.78090844,145.43,145.37,5.61]
[1718492299611,6.39090844,145.43,145.37,5.61]
[1718492299769,0.78090844,145.42,145.37,5.61]
[1718492305012,0.78090844,145.42,145.38,5.61]
[1718492305316,6.39090844,145.43,145.38,5.61]
[1718492306306,5.61,145.43,145.38,5.61]
[1718492307308,0.78090844,145.44,145.38,21.1401]
[1718492307621,6.39090844,145.45,145.39,5.61]
[1718492309321,0.78090844,145.45,145.39,5.61]
[1718492309486,6.39090844,145.45,145.39,5.61]
[1718492311885,8.93480844,145.45,145.39,5.61]
[1718492312081,5.61,145.44,145.39,5.61]
[1718492312311,0.78090844,145.43,145.39,5.61]
[1718492313016,6.39090844,145.44,145.39,5.61]
[1718492313227,0.78090844,145.44,145.39,5.61]
[1718492317013,6.39090844,145.44,145.39,5.61]
[1718492319316,6.39090844,145.44,145.38,15.5301]
[1718492319519,5.61,145.43,145.38,15.5301]
[1718492320117,6.39090844,145.44,145.38,21.1401]
[1718492321006,0.78090844,145.44,145.39,5.61]
[1718492321248,6.39090844,145.44,145.39,5.61]
[1718492322533,6.39090844,145.44,145.38,15.5301]
[1718492322733,5.61,145.43,145.37,5.61]
[1718492322941,0.78090844,145.42,145.37,5.61]
[1718492324063,0.78090844,145.42,145.35,15.2413]
[1718492324219,0.78090844,145.42,145.36,5.61]
[1718492324867,0.78090844,145.42,145.37,5.61]
[1718492327560,0.78090844,145.42,145.35,15.2413]
[1718492327762,5.61,145.42,145.36,5.61]
[1718492328622,5.61,145.42,145.37,5.61]
[1718492329131,0.78090844,145.43,145.37,5.61]
[1718492329374,0.95090844,145.44,145.37,5.61]
[1718492329559,0.78090844,145.44,145.38,5.61]
[1718492329746,6.39090844,145.44,145.38,5.61]
[1718492330351,5.61,145.44,145.38,5.61]
[1718492331642,0.78090844,145.45,145.38,5.61]
[1718492331992,5.61,145.44,145.38,5.61]
[1718492332363,5.61,145.44,145.39,5.61]
[1718492332558,6.39090844,145.45,145.39,5.61]
[1718492332985,8.93470844,145.45,145.39,5.61]
[1718492334867,8.41240844,145.45,145.39,5.61]
[1718492335181,13.2415,145.45,145.39,5.61]
[1718492335979,20.873,145.45,145.39,5.61]
[1718492336191,28.5045,145.45,145.39,5.61]
[1718492336359,5.61,145.44,145.38,5.61]
[1718492336779,8.154,145.44,145.38,5.61]
[1718492337884,5.61,145.44,145.38,5.61]
[1718492339562,5.11,145.44,145.38,5.61]
[1718492339757,5.61,145.43,145.36,0.34]
[1718492339987,5.61,145.43,145.37,5.61]
[1718492340485,15.2642,145.44,145.37,5.61]
[1718492340686,2.5441,145.44,145.37,5.61]
[1718492342184,25.4391,145.45,145.37,5.61]
[1718492342688,5.61,145.43,145.38,5.61]
[1718492343489,2.7138,145.45,145.38,5.61]
[1718492343790,5.61,145.43,145.38,5.61]
[1718492347086,2.7138,145.45,145.38,5.61]
[1718492347285,5.61,145.43,145.38,5.61]
[1718492349186,0.17,145.45,145.38,5.61]
[1718492349399,5.61,145.44,145.38,5.61]
[1718492351388,5.61,145.43,145.38,5.61]
[1718492354180,25.6084,145.45,145.38,5.61]
[1718492354381,0.17,145.45,145.38,5.61]
[1718492354608,5.61,145.44,145.38,5.61]
[1718492354784,2.7138,145.45,145.38,5.61]
[1718492355107,5.61,145.44,145.38,5.61]
[1718492355509,2.7138,145.45,145.38,5.61]
[1718492355884,5.61,145.44,145.38,5.61]
[1718492356683,5.61,145.43,145.38,5.61]
[1718492357519,15.4329,145.45,145.38,5.61]
[1718492357818,5.61,145.43,145.38,5.61]
[1718492358189,0.17,145.45,145.38,5.61]
[1718492358611,5.78,145.45,145.39,5.61]
[1718492360909,8.3238,145.45,145.39,5.61]
[1718492361713,13.4115,145.45,145.39,5.61]
[1718492363716,21.0429,145.45,145.39,5.61]
[1718492364616,13.242,145.44,145.39,5.61]
[1718492364824,20.874,145.44,145.39,5.61]
[1718492365025,20.874,145.44,145.38,5.61]
[1718492365613,8.154,145.44,145.38,5.61]
[1718492366527,5.61,145.44,145.38,5.61]
[1718492373608,15.4333,145.45,145.38,5.61]
[1718492373835,5.61,145.44,145.38,5.61]
[1718492377435,8.154,145.44,145.38,5.61]
[1718492377733,5.61,145.44,145.38,5.61]
[1718492378931,5.61,145.42,145.36,5.61]
[1718492380051,5.61,145.43,145.37,5.61]
[1718492381746,5.61,145.43,145.35,15.2413]
[1718492381931,5.61,145.43,145.37,5.61]
[1718492385260,5.61,145.43,145.38,5.61]
[1718492387254,5.61,145.43,145.36,20.17]
[1718492387442,5.61,145.43,145.37,5.61]
[1718492390452,16.307,145.46,145.36,20.17]
[1718492390749,5.61,145.45,145.39,5.61]
[1718492391966,8.1538,145.45,145.37,0.34]
[1718492392174,8.1538,145.45,145.39,5.61]
[1718492392677,13.2414,145.45,145.39,5.61]
[1718492392845,8.1538,145.45,145.39,5.61]
[1718492393186,2.5437,145.46,145.39,5.61]
[1718492393339,5.61,145.45,145.39,5.61]
[1718492399981,11.7406,145.47,145.42,5.61]
[1718492400460,6.1306,145.47,145.42,5.61]
[1718492401681,8.674,145.47,145.42,5.61]
[1718492402173,5.61,145.48,145.42,5.61]
[1718492402371,16.4157,145.5,145.43,5.61]
[1718492402582,8.1531,145.49,145.43,5.61]
[1718492402751,2.5431,145.49,145.43,5.61]
[1718492403568,20.8686,145.49,145.43,5.61]
[1718492403764,2.5431,145.49,145.43,5.61]
[1718492404088,5.61,145.48,145.43,5.61]
[1718492404378,7.6293,145.49,145.43,5.61]
[1718492404584,5.61,145.48,145.43,5.61]
[1718492405079,2.5431,145.49,145.43,5.61]
[1718492405277,18.9586,145.5,145.43,5.61]
[1718492405479,5.61,145.48,145.43,5.61]
[1718492406089,5.61,145.48,145.42,5.61]
[1718492406385,5.61,145.48,145.41,5.61]
[1718492406386,5.61,145.47,145.41,5.61]
[1718492406584,5.61,145.47,145.4,0.34]
[1718492406585,28.502,145.47,145.4,0.34]
[1718492406770,8.1535,145.47,145.41,5.61]
[1718492407581,5.61,145.47,145.42,5.61]
[1718492408870,5.61,145.48,145.42,5.61]
[1718492410502,41.8453,145.5,145.42,5.61]
[1718492410786,5.61,145.48,145.43,5.61]
[1718492411685,0.8500918,145.51,145.43,22.0067]
[1718492411891,6.4600918,145.51,145.45,5.61]
[1718492412069,0.8500918,145.51,145.44,0.51]
[1718492412384,6.4600918,145.51,145.45,5.61]
[1718492413096,5.61,145.5,145.45,5.61]
[1718492416004,0.8500918,145.51,145.45,5.61]
[1718492416300,5.61,145.5,145.44,0.51]
[1718492416602,5.61,145.5,145.45,5.61]
[1718492416803,6.4600918,145.51,145.45,5.61]
[1718492417281,0.8500918,145.51,145.44,120.51]
[1718492417486,0.8500918,145.51,145.47,5.61]
[1718492417704,0.8500918,145.51,145.44,20.51]
[1718492417909,0.8500918,145.51,145.46,5.61]
[1718492418204,6.4600918,145.51,145.46,5.61]
[1718492419710,6.4600918,145.51,145.44,20.51]
[1718492419886,6.4600918,145.51,145.46,5.61]
[1718492420601,5.61,145.49,145.44,20.0]
[1718492420800,5.61,145.48,145.41,20.0]
[1718492421007,5.61,145.46,145.39,5.46179097]
[1718492421204,5.61,145.45,145.39,5.61]
[1718492421983,5.61,145.44,145.36,116.6156]
[1718492422314,5.61,145.44,145.38,5.61]
[1718492422698,5.61,145.44,145.36,16.6156]
[1718492423015,5.61,145.43,145.38,5.61]
[1718492423392,5.61,145.44,145.38,5.61]
[1718492423996,5.61,145.44,145.36,16.6156]
[1718492424202,5.61,145.43,145.38,5.61]
[1718492425928,5.61,145.42,145.33,8.31515284]
[1718492426219,5.61,145.41,145.33,5.47547964]
[1718492426517,10.3464,145.44,145.32,145.135]
[1718492426518,2.7141,145.44,145.36,5.61]
[1718492426737,0.17,145.44,145.36,5.61]
[1718492426902,2.714,145.44,145.36,5.61]
[1718492427303,0.17,145.44,145.36,5.61]
[1718492427501,0.17,145.44,145.37,5.61]
[1718492428823,2.714,145.44,145.37,5.61]
[1718492429004,2.714,145.44,145.36,5.61]
[1718492433602,23.0669,145.44,145.33,0.17]
[1718492433799,7.8024,145.44,145.36,5.61]
[1718492434031,15.4344,145.44,145.36,5.61]
[1718492434409,7.8024,145.44,145.36,5.61]
[1718492434827,2.7141,145.44,145.36,5.61]
[1718492435030,8.6497,145.43,145.36,5.61]
[1718492435234,5.61,145.38,145.29,28.95515284]
[1718492435451,5.61,145.37,145.32,5.61]
[1718492436622,5.61,145.38,145.32,5.61]
[1718492438958,5.61,145.38,145.33,5.61]
[1718492440176,5.61,145.39,145.33,5.61]
[1718492440345,5.61,145.4,145.34,5.61]
[1718492442039,5.61,145.38,145.31,0.17]
[1718492442245,5.61,145.38,145.33,5.61]
[1718492442646,5.61,145.38,145.32,5.61]
[1718492444669,5.61,145.38,145.31,0.51]
[1718492444670,5.61,145.38,145.33,5.61]
[1718492444866,0.17,145.4,145.33,5.61]
[1718492444867,5.61,145.39,145.33,5.61]
[1718492449489,5.61,145.39,145.31,0.51]
[1718492449686,5.61,145.39,145.32,5.61]
[1718492452075,5.78,145.4,145.32,5.61]
[1718492452671,5.61,145.39,145.33,5.61]
[1718492453160,5.61,145.4,145.33,5.61]
[1718492453362,15.3118,145.41,145.33,5.61]
[1718492453588,5.61,145.4,145.34,5.61]
[1718492455473,5.61,145.4,145.31,100.51]
[1718492455668,5.61,145.39,145.34,5.61]
[1718492457572,15.3118,145.41,145.33,0.34]
[1718492457773,15.3118,145.41,145.36,5.61]
[1718492458785,20.9218,145.41,145.36,5.61]
[1718492459165,5.61,145.4,145.34,0.17]
[1718492459361,38.2128,145.41,145.33,20.34]
[1718492459566,5.61,145.39,145.33,25.95]
[1718492461467,5.61,145.39,145.33,20.0]
[1718492461667,5.61,145.36,145.33,20.0]
[1718492461867,5.61,145.36,145.3,5.61]
[1718492462095,5.61,145.36,145.31,20.0]
[1718492463576,5.61,145.36,145.28,22.6742]
[1718492463784,5.61,145.35,145.3,5.61]
[1718492464091,5.61,145.35,145.28,22.6742]
[1718492464092,5.61,145.35,145.29,5.61]
[1718492464891,5.61,145.35,145.3,20.0]
[1718492470055,5.61,145.32,145.26,8.31515284]
[1718492470265,5.61,145.32,145.27,5.61]
[1718492470613,5.61,145.32,145.24,43.1131]
[1718492470836,5.61,145.32,145.26,5.61]
[1718492471037,5.61,145.32,145.27,5.61]
[1718492474422,5.61,145.33,145.27,5.61]
[1718492475254,0.17,145.35,145.27,5.61]
[1718492475459,5.61,145.33,145.27,5.61]
[1718492476124,5.61,145.33,145.26,0.17]
[1718492476315,5.61,145.31,145.25,20.51]
[1718492476756,5.61,145.31,145.25,26.12]
[1718492477055,5.61,145.31,145.26,5.61]
[1718492477224,5.61,145.31,145.27,20.0]
[1718492478127,5.61,145.31,145.26,5.61]
[1718492478858,5.61,145.31,145.25,6.12]
[1718492479035,5.61,145.31,145.26,20.0]
[1718492484386,5.61,145.31,145.25,0.17]
[1718492484387,5.61,145.31,145.25,20.17]
[1718492485063,5.61,145.31,145.25,25.78]
[1718492485570,15.2843,145.33,145.25,25.78]
[1718492485765,5.61,145.31,145.25,25.78]
[1718492485948,5.61,145.32,145.26,5.61]
[1718492487349,5.61,145.32,145.25,20.17]
[1718492487551,5.61,145.31,145.26,20.0]
[1718492489155,5.61,145.31,145.25,5.78]
[1718492489354,5.61,145.31,145.26,20.0]
[1718492491352,15.2843,145.33,145.26,20.0]
[1718492491557,5.61,145.3,145.22,5.48000591]
[1718492491777,5.61,145.28,145.23,20.0]
[1718492491949,5.61,145.28,145.22,5.61]
[1718492492156,5.61,145.27,145.21,5.61]
[1718492492549,5.61,145.26,145.21,5.61]
[1718492493267,5.61,145.26,145.19,5.42189637]
[1718492493591,5.61,145.26,145.21,5.61]
[1718492493764,5.61,145.26,145.22,20.0]
[1718492494367,5.61,145.27,145.22,20.0]
[1718492495155,5.61,145.28,145.22,25.61]
[1718492497750,15.1648,145.29,145.23,5.61]
[1718492497995,20.7748,145.29,145.23,5.61]
[1718492499271,20.7748,145.29,145.22,20.0]
[1718492499470,20.7748,145.29,145.18,126.22282328]
[1718492499471,5.61,145.28,145.23,5.61]
[1718492499890,5.61,145.28,145.22,5.61]
[1718492501100,5.61,145.28,145.23,5.61]
[1718492505191,5.61,145.28,145.21,0.34]
[1718492505192,15.1648,145.29,145.25,5.61]
[1718492506308,20.7748,145.29,145.24,5.61]
[1718492506603,5.61,145.28,145.23,5.61]
[1718492506796,5.61,145.28,145.24,20.0]
[1718492507099,5.61,145.27,145.21,8.3179516]
[1718492507294,5.61,145.27,145.22,5.61]
[1718492508307,5.61,145.27,145.19,0.17]
[1718492508465,5.61,145.27,145.19,20.68]
[1718492508665,5.61,145.27,145.22,5.61]
[1718492509883,15.1648,145.29,145.19,20.68]
[1718492509884,5.61,145.25,145.19,20.68]
[1718492510195,5.61,145.25,145.18,5.58282328]
[1718492510404,6.2824,145.26,145.2,5.61]
[1718492510699,11.8924,145.26,145.2,5.61]
[1718492511103,6.2824,145.26,145.21,5.61]
[1718492511411,6.2824,145.26,145.18,100.0]
[1718492511709,6.2824,145.26,145.21,5.61]
[1718492514568,6.2824,145.26,145.19,20.51]
[1718492514804,5.61,145.28,145.23,5.61]
[1718492515092,5.61,145.28,145.22,5.61]
[1718492519499,15.1648,145.29,145.24,5.61]
[1718492519681,15.1648,145.29,145.25,5.61]
[1718492522198,15.1648,145.29,145.23,0.34]
[1718492522401,20.7748,145.29,145.23,5.61]
[1718492522595,15.1648,145.29,145.23,5.61]
[1718492522913,15.1648,145.29,145.24,5.61]
[1718492523775,15.1648,145.29,145.25,5.61]
[1718492524504,15.1648,145.29,145.24,5.61]
[1718492526609,15.1648,145.29,145.23,0.17]
[1718492526817,6.3235,145.3,145.27,5.61]
[1718492526981,28.4719,145.33,145.27,5.61]
[1718492530718,28.4719,145.33,145.28,5.61]
[1718492531904,28.4719,145.33,145.26,0.34]
[1718492531905,22.8619,145.33,145.26,0.34]
[1718492532101,22.8619,145.33,145.3,5.61]
[1718492532301,16.5384,145.33,145.3,5.61]
[1718492533114,16.5384,145.33,145.29,5.61]
[1718492533309,16.5384,145.33,145.31,5.61]
[1718492533520,27.8873,145.36,145.31,5.61]
[1718492534124,27.8873,145.36,145.3,5.95]
[1718492537922,22.2773,145.36,145.3,5.95]